bitfinex/quotes_BTCUSD_20251231
["timestamp","ask_amount","ask_price","bid_price","bid_amount"]
[1767213623304,0.01144492,87375.0,87361.0,0.0608441]
[1767213623505,0.01144479,87376.0,87361.0,0.0608441]
[1767213623761,0.06866846,87377.0,87361.0,0.0608441]
[1767213624072,0.011444,87382.0,87378.0,0.0493641]
[1767213624268,0.01144361,87385.0,87378.0,0.0488141]
[1767213624426,0.06866201,87385.0,87377.0,0.000549]
[1767213624636,0.06866326,87383.0,87372.0,0.0493641]
[1767213624830,0.011444,87382.0,87372.0,0.0493641]
[1767213625065,0.01144387,87383.0,87372.0,0.0493641]
[1767213625532,0.0690175,87384.0,87372.0,0.0493641]
[1767213625733,0.01179822,87384.0,87372.0,0.0493641]
[1767213625938,0.00035448,87384.0,87373.0,0.01148]
[1767213626174,0.05721936,87383.0,87373.0,0.01148]
[1767213626482,0.06866323,87383.0,87373.0,0.00648]
[1767213627655,0.011444,87382.0,87372.0,0.0493641]
[1767213627885,0.01830217,87384.0,87372.0,0.0493641]
[1767213628283,0.01775317,87384.0,87371.0,0.0493641]
[1767213632003,0.0001596,87386.0,87371.0,0.0493641]
[1767213632167,0.0001596,87386.0,87371.0,0.04971858]
[1767213633593,0.0001596,87386.0,87372.0,0.0493641]
[1767213633910,0.05721805,87385.0,87372.0,0.0493641]
[1767213634147,0.01144374,87384.0,87372.0,0.0493641]
[1767213634362,0.06866259,87384.0,87372.0,0.0493641]
[1767213634579,0.000549,87372.0,87371.0,0.00035448]
[1767213634777,0.01144465,87377.0,87371.0,0.01183448]
[1767213634906,0.06866721,87378.0,87371.0,0.00035448]
[1767213635119,0.06866721,87378.0,87372.0,0.01148]
[1767213635120,0.01144452,87378.0,87372.0,0.01148]
[1767213635316,0.06866541,87381.0,87372.0,0.01148]
[1767213635544,0.01144413,87381.0,87372.0,0.01148]
[1767213635746,0.56314798,87382.0,87372.0,0.0608441]
[1767213636405,0.01144361,87385.0,87373.0,0.0493641]
[1767213636406,0.06866168,87385.0,87373.0,0.0493641]
[1767213636624,0.05737827,87386.0,87373.0,0.0493641]
[1767213636625,0.06882175,87386.0,87373.0,0.0493641]
[1767213636827,0.01160308,87386.0,87373.0,0.0493641]
[1767213637049,0.06866166,87385.0,87373.0,0.0493641]
[1767213637329,0.01160308,87386.0,87373.0,0.0493641]
[1767213637531,0.0001596,87386.0,87373.0,0.0493641]
[1767213637680,0.01144465,87377.0,87373.0,0.0493641]
[1767213637879,0.01144479,87376.0,87372.0,0.01148]
[1767213638082,0.06866874,87376.0,87372.0,0.01148]
[1767213638264,0.05722657,87372.0,87371.0,0.00035448]
[1767213638604,0.05718279,87372.0,87371.0,0.00035448]
[1767213638904,0.01144505,87374.0,87371.0,0.00035448]
[1767213639310,0.05722653,87373.0,87371.0,0.00035448]
[1767213639511,0.05722624,87373.0,87371.0,0.00035448]
[1767213639752,0.05722657,87372.0,87371.0,0.00035448]
[1767213640497,0.05722657,87372.0,87371.0,1e-08]
[1767213640703,0.08532389,87372.0,87371.0,1e-08]
[1767213640916,0.05722657,87372.0,87371.0,1e-08]
[1767213641107,0.01144505,87374.0,87371.0,1e-08]
[1767213641305,0.01144492,87375.0,87371.0,1e-08]
[1767213641516,0.01144505,87374.0,87371.0,1e-08]
[1767213641760,0.06866972,87375.0,87371.0,1e-08]
[1767213642103,0.01144505,87374.0,87371.0,1e-08]
[1767213642306,0.06867031,87374.0,87371.0,1e-08]
[1767213642619,0.06866961,87375.0,87371.0,1e-08]
[1767213643027,0.05722637,87373.0,87371.0,1e-08]
[1767213643223,0.06867066,87374.0,87371.0,1e-08]
[1767213643791,0.06866934,87376.0,87374.0,0.000549]
[1767213643792,0.01144479,87376.0,87374.0,0.000549]
[1767213643993,0.05723391,87361.0,87355.0,0.04012866]
[1767213644256,0.05723391,87361.0,87324.0,0.0003588]
[1767213644257,0.05723391,87361.0,87324.0,1e-08]
[1767213644258,0.01145121,87327.0,87324.0,1e-08]
[1767213644562,0.21148,87360.0,87317.0,0.0493641]
[1767213644563,0.2,87340.0,87317.0,0.0493641]
[1767213644769,0.0114499,87337.0,87327.0,0.0499141]
[1767213644895,0.01145003,87336.0,87327.0,0.0499141]
[1767213645095,0.01145081,87330.0,87316.0,0.000258]
[1767213645299,0.01152,87329.0,87316.0,0.000258]
[1767213645517,0.01152,87329.0,87317.0,0.0493641]
[1767213645518,0.00035405,87329.0,87317.0,0.0493641]
[1767213645732,0.00035405,87329.0,87320.0,0.0493641]
[1767213645934,5e-08,87329.0,87320.0,0.0493641]
[1767213646151,0.00652005,87331.0,87320.0,0.0493641]
[1767213646323,0.56314798,87330.0,87320.0,0.00035405]
[1767213646530,0.62380964,87330.0,87320.0,0.00035405]
[1767213646851,0.63526045,87330.0,87320.0,0.00035405]
[1767213647052,0.62380964,87330.0,87320.0,0.00035405]
[1767213647550,0.62380964,87330.0,87300.0,0.56314798]
[1767213647551,0.61880964,87330.0,87298.0,0.0507512]
[1767213647720,0.56350098,87320.0,87301.0,0.0493641]
[1767213647919,0.01152,87319.0,87301.0,0.0493641]
[1767213648126,0.011324,87319.0,87301.0,0.0493641]
[1767213648333,0.01145199,87321.0,87301.0,0.0493641]
[1767213648334,0.01152,87318.0,87301.0,0.0493641]
[1767213648535,0.01156,87317.0,87301.0,0.0493641]
[1767213649108,0.01145265,87316.0,87301.0,0.0493641]
[1767213649381,0.01156,87317.0,87301.0,0.0493641]
[1767213649621,0.00035405,87330.0,87301.0,0.0493641]
[1767213649822,0.56314798,87320.0,87301.0,0.0493641]
[1767213650024,0.01156,87319.0,87301.0,0.0493641]
[1767213650202,0.00035405,87330.0,87310.0,0.04772199]
[1767213650402,0.00035405,87330.0,87320.0,0.04772199]
[1767213650627,0.06870073,87336.0,87320.0,0.04772199]
[1767213650628,0.01144924,87342.0,87321.0,0.05928199]
[1767213650803,0.01156,87346.0,87331.0,0.04772199]
[1767213650984,0.01156,87347.0,87335.0,0.04772199]
[1767213651200,0.01144872,87346.0,87335.0,0.04772199]
[1767213651404,0.08025133,87348.0,87335.0,0.04772199]
[1767213651602,0.01156,87348.0,87335.0,0.04772199]
[1767213651802,0.01156,87348.0,87339.0,0.04772199]
[1767213652120,0.01199651,87350.0,87339.0,0.04772199]
[1767213652324,0.00054832,87350.0,87339.0,0.04772199]
[1767213654391,0.01199651,87350.0,87339.0,0.04772199]
[1767213654788,0.00054832,87350.0,87339.0,0.04772199]
[1767213655376,0.00054832,87350.0,87340.0,0.01156]
[1767213655757,0.01199651,87350.0,87340.0,0.01156]
[1767213655954,0.06902248,87353.0,87341.0,0.05365019]
[1767213655955,0.0003351,87353.0,87341.0,0.05365019]
[1767213656178,0.04999104,87365.0,87341.0,0.04772199]
[1767213656179,0.06155104,87365.0,87341.0,0.04772199]
[1767213656355,0.04999104,87364.0,87341.0,0.04772199]
[1767213656858,0.01795239,87365.0,87341.0,0.04772199]
[1767213657886,0.01795239,87365.0,87351.0,0.04772199]
[1767213658063,0.01795239,87365.0,87353.0,0.04772199]
[1767213658440,0.01795239,87365.0,87354.0,0.01156]
[1767213658991,0.04999104,87362.0,87354.0,0.01105154]
[1767213659203,0.06143779,87361.0,87354.0,4.054e-05]
[1767213659408,0.04999104,87358.0,87339.0,0.04772199]
[1767213659612,0.01144727,87357.0,87339.0,0.0478282]
[1767213659821,0.05723639,87357.0,87339.0,0.0478282]
[1767213660022,0.0114478,87353.0,87339.0,0.0478282]
[1767213660229,0.01144793,87352.0,87339.0,0.0478282]
[1767213660450,0.06868793,87352.0,87340.0,0.01156]
[1767213660805,0.01144767,87354.0,87340.0,0.01156]
[1767213661009,0.56368543,87350.0,87339.0,0.00010621]
[1767213661275,0.56368543,87350.0,87340.0,0.01156]
[1767213661496,0.11867867,87352.0,87340.0,0.01156]
[1767213661640,0.06143897,87352.0,87340.0,0.01101]
[1767213661853,0.01144832,87349.0,87340.0,0.01101]
[1767213662187,0.06868838,87351.0,87340.0,0.01101]
[1767213662490,0.01144872,87346.0,87340.0,0.01101]
[1767213663089,0.01144885,87345.0,87340.0,0.01101]
[1767213663882,0.01144898,87344.0,87339.0,0.01166621]
[1767213664072,0.01144872,87346.0,87339.0,0.01166621]
[1767213664073,0.06869277,87346.0,87339.0,0.01166621]
[1767213664274,0.01144885,87345.0,87339.0,0.01166621]
[1767213664476,0.01144872,87346.0,87339.0,0.01166621]
[1767213664672,0.01144688,87360.0,87346.0,0.001099]
[1767213664871,0.01144688,87360.0,87347.0,0.04772199]
[1767213665450,0.01144649,87363.0,87347.0,0.04772199]
[1767213665727,0.01144675,87361.0,87347.0,0.04772199]
[1767213665905,0.01144701,87359.0,87347.0,0.04772199]
[1767213666225,0.06868139,87360.0,87347.0,0.04772199]
[1767213666371,0.06868079,87361.0,87347.0,0.04772199]
[1767213666570,0.01144649,87363.0,87347.0,0.04772199]
[1767213666776,0.01144688,87360.0,87347.0,0.04772199]
[1767213666978,0.0686803,87362.0,87347.0,0.04772199]
[1767213667633,0.01144662,87362.0,87347.0,0.04772199]
[1767213667843,0.01156,87365.0,87347.0,0.04772199]
[1767213668047,0.01795173,87362.0,87347.0,0.04772199]
[1767213668401,0.01795173,87362.0,87346.0,0.01156]
[1767213668622,0.01795173,87362.0,87347.0,0.04772199]
[1767213670864,0.0003114,87371.0,87351.0,0.04772199]
[1767213671443,4e-07,87371.0,87351.0,0.04772199]
[1767213671649,0.0003114,87390.0,87351.0,0.01900208]
[1767213671831,0.0003114,87390.0,87350.0,0.82640746]
[1767213671832,0.04999104,87380.0,87361.0,0.01900208]
[1767213672030,0.04999104,87380.0,87362.0,0.01152]
[1767213672225,0.04999104,87380.0,87363.0,0.01900208]
[1767213672477,0.01144334,87387.0,87380.0,0.000238]
[1767213672678,0.04999104,87384.0,87380.0,0.000238]
[1767213673063,0.06143478,87384.0,87373.0,0.01152]
[1767213673741,0.06143478,87384.0,87373.0,0.01162621]
[1767213673940,0.04999104,87384.0,87373.0,0.01162621]
[1767213674201,0.01794678,87383.0,87373.0,0.01162621]
[1767213674415,0.01770878,87383.0,87374.0,0.0187789]
[1767213675442,0.0003114,87390.0,87374.0,0.0187789]
[1767213676031,4e-07,87390.0,87374.0,0.0187789]
[1767213677636,0.04999104,87389.0,87374.0,0.0187789]
[1767213678126,0.04999104,87389.0,87375.0,0.00762451]
[1767213680274,4e-07,87390.0,87376.0,0.0187789]
[1767213680624,4e-07,87390.0,87381.0,0.0187789]
[1767213680798,4e-07,87390.0,87382.0,0.01152]
[1767213680799,0.04702494,87390.0,87382.0,0.01152]
[1767213681123,4e-07,87390.0,87382.0,0.01152]
[1767213681380,4e-07,87390.0,87383.0,0.0187789]
[1767213681570,4e-07,87390.0,87385.0,0.0187789]
[1767213683757,4e-07,87390.0,87387.0,0.0187789]
[1767213685704,0.0003114,87409.0,87389.0,0.0187789]
[1767213686014,0.0003114,87409.0,87391.0,0.0187789]
[1767213686918,0.00024341,87419.0,87391.0,0.0187789]
[1767213687113,0.04726795,87419.0,87393.0,0.0187789]
[1767213687530,0.04726795,87419.0,87392.0,0.09025464]
[1767213687531,0.00024341,87419.0,87401.0,0.0187789]
[1767213687721,0.00024341,87419.0,87400.0,0.82640746]
[1767213687722,0.00024341,87419.0,87403.0,0.0187789]
[1767213688723,0.00059792,87419.0,87403.0,0.0187789]
[1767213688940,0.00059792,87419.0,87405.0,0.0187789]
[1767213693562,0.00059792,87419.0,87403.0,0.0187789]
[1767213694641,0.00059792,87419.0,87382.0,0.02294]
[1767213694642,0.001099,87403.0,87383.0,0.0187789]
[1767213694819,0.04702454,87409.0,87390.0,0.06404404]
[1767213694988,0.04702454,87409.0,87391.0,0.05736]
[1767213695194,0.04702454,87409.0,87392.0,0.01913389]
[1767213696451,0.04762246,87419.0,87409.0,0.000549]
[1767213696657,0.04762246,87419.0,87408.0,0.01152]
[1767213697149,0.04702454,87418.0,87408.0,0.01152]
[1767213697353,0.0686437,87408.0,87392.0,0.00761389]
[1767213697662,0.04702454,87407.0,87393.0,0.01152]
[1767213697849,0.04702454,87407.0,87393.0,0.01801739]
[1767213699842,0.04702454,87405.0,87393.0,0.01801739]
[1767213703426,0.04702454,87418.0,87405.0,0.000549]
[1767213703691,0.04702454,87418.0,87404.0,0.01152]
[1767213703872,0.01143942,87417.0,87404.0,0.01152]
[1767213704167,0.04702454,87416.0,87404.0,0.01152]
[1767213705751,0.01144007,87412.0,87397.0,0.01152]
[1767213705953,0.04702454,87410.0,87398.0,0.00593926]
[1767213706145,0.04702454,87410.0,87397.0,0.01152]
[1767213711958,0.04702454,87410.0,87393.0,0.00649739]
[1767213712121,0.0300584,87419.0,87358.0,0.08427181]
[1767213712122,0.04989266,87402.0,87379.0,0.04137522]
[1767213712341,0.04989266,87399.0,87380.0,0.01152]
[1767213712483,0.04989266,87396.0,87381.0,0.00605197]
[1767213712885,0.04989266,87393.0,87381.0,0.00605197]
[1767213713290,0.01144308,87389.0,87381.0,0.00605197]
[1767213713505,0.061336,87387.0,87380.0,0.01152]
[1767213713738,0.04989266,87385.0,87380.0,0.01152]
[1767213714299,0.04989266,87385.0,87375.0,0.01152]
[1767213714519,0.04989266,87385.0,87375.0,0.01162621]
[1767213715912,0.01144334,87387.0,87375.0,0.01162621]
[1767213715913,0.01144374,87384.0,87375.0,0.01162621]
[1767213716168,0.01144334,87387.0,87375.0,0.01162621]
[1767213716169,0.04989266,87383.0,87375.0,0.01162621]
[1767213717577,0.011444,87382.0,87375.0,0.01162621]
[1767213717780,0.04989266,87381.0,87375.0,0.01162621]
[1767213717973,0.04989266,87381.0,87375.0,0.00010621]
[1767213718394,0.01144465,87377.0,87348.0,0.0475561]
[1767213718575,0.06133745,87376.0,87354.0,0.0475561]
[1767213718770,0.06133758,87375.0,87354.0,0.0475561]
[1767213719172,0.04989266,87375.0,87354.0,0.0475561]
[1767213719894,0.04989266,87373.0,87354.0,0.0475561]
[1767213720075,0.04989266,87373.0,87355.0,0.00590761]
[1767213720276,0.04989266,87373.0,87356.0,0.01152]
[1767213721018,0.06133784,87373.0,87356.0,0.01152]
[1767213721178,0.06133849,87368.0,87356.0,0.01152]
[1767213721381,0.04989266,87366.0,87356.0,0.01152]
[1767213721720,0.04989266,87365.0,87356.0,0.01152]
[1767213721878,0.06133889,87365.0,87356.0,0.01152]
[1767213722079,0.04989266,87363.0,87356.0,0.01152]
[1767213722852,0.04989266,87361.0,87356.0,0.01152]
[1767213723394,0.04989266,87361.0,87347.0,0.0462053]
[1767213723395,0.04989266,87361.0,87347.0,0.0003653]
[1767213723726,0.04989266,87361.0,87348.0,0.01152]
[1767213724956,0.04989266,87361.0,87348.0,0.01746414]
[1767213726129,0.06874735,87371.0,87348.0,0.06502024]
[1767213726331,0.04989266,87368.0,87348.0,0.06502024]
[1767213726532,0.06141266,87368.0,87349.0,0.0475561]
[1767213730160,0.01152,87371.0,87349.0,0.0475561]
[1767213730364,0.01152,87371.0,87351.0,0.0475561]
[1767213730978,0.00010626,87377.0,87351.0,0.0475561]
[1767213733518,0.00010626,87377.0,87353.0,0.0475561]
[1767213733648,0.00010626,87377.0,87355.0,0.0475561]
[1767213733853,0.00010626,87377.0,87357.0,0.0475561]
[1767213734058,0.00010626,87377.0,87359.0,0.0475561]
[1767213734488,0.06783905,87383.0,87358.0,0.01049161]
[1767213734489,0.01794639,87383.0,87361.0,0.0475561]
[1767213734712,0.04989266,87389.0,87361.0,0.04766236]
[1767213737298,0.04989266,87389.0,87370.0,0.56333438]
[1767213737506,0.04989266,87389.0,87372.0,0.0475561]
[1767213737704,0.04989266,87389.0,87373.0,0.0590761]
[1767213739400,0.04989266,87389.0,87361.0,0.00010626]
[1767213739401,0.000549,87373.0,87372.0,0.01152]
[1767213739606,0.04989266,87381.0,87372.0,0.01152]
[1767213745717,0.01152,87390.0,87372.0,0.01152]
[1767213745897,0.04878906,87389.0,87372.0,0.01152]
[1767213746099,0.04878906,87389.0,87373.0,0.00582067]
[1767213746600,0.04878906,87389.0,87373.0,0.05250736]
[1767213749081,0.01794493,87391.0,87373.0,0.05250736]
[1767213749754,0.01794493,87391.0,87381.0,0.04668669]
[1767213749937,0.04878906,87401.0,87383.0,0.03604924]
[1767213750141,0.04878906,87401.0,87385.0,0.03604924]
[1767213751178,0.0002177,87407.0,87385.0,0.03604924]
[1767213751380,0.0002177,87407.0,87391.0,0.03604924]
[1767213751579,0.0002177,87407.0,87390.0,0.56333438]
[1767213751580,0.0002177,87407.0,87393.0,0.03604924]
[1767213751816,0.0002177,87407.0,87394.0,0.01152]
[1767213752599,0.00032412,87407.0,87394.0,0.01152]
[1767213753006,0.00032412,87407.0,87395.0,0.06109036]
[1767213753271,0.00032412,87407.0,87396.0,0.03604924]
[1767213754599,0.00024341,87419.0,87398.0,0.03572512]
[1767213754810,0.00059807,87419.0,87398.0,0.03572512]
[1767213755020,0.04938713,87419.0,87398.0,0.03572512]
[1767213755234,0.04938713,87419.0,87400.0,0.03572512]
[1767213755442,0.04938713,87419.0,87401.0,0.01152]
[1767213755885,0.04938713,87419.0,87401.0,0.04724512]
[1767213756290,0.04938713,87419.0,87402.0,0.03572512]
[1767213760695,0.00940195,87418.0,87402.0,0.03572512]
[1767213760927,0.00940195,87418.0,87403.0,0.06564195]
[1767213761484,0.00940195,87418.0,87403.0,0.11232864]
[1767213761724,0.00940195,87418.0,87404.0,0.04668669]
[1767213762039,0.00061224,87427.0,87404.0,0.04668669]
[1767213762238,0.04878906,87425.0,87404.0,0.04704135]
[1767213762438,0.04903796,87422.0,87405.0,0.01700433]
[1767213764507,0.04903796,87422.0,87410.0,0.56272677]
[1767213764735,0.04903796,87422.0,87411.0,0.01152]
[1767213767133,0.00059807,87421.0,87411.0,0.01152]
[1767213767788,0.00061224,87427.0,87411.0,0.05820669]
[1767213767988,0.00061224,87427.0,87417.0,0.56272677]
[1767213768187,0.00061224,87427.0,87418.0,0.01152]
[1767213768701,0.00061224,87427.0,87418.0,0.05820669]
[1767213769213,0.04918906,87438.0,87419.0,0.04668669]
[1767213769421,0.04918906,87438.0,87421.0,0.04668669]
[1767213771295,0.04918906,87438.0,87427.0,0.56272677]
[1767213771495,0.0004,87438.0,87428.0,0.01152]
[1767213771814,0.0004,87438.0,87428.0,0.010971]
[1767213772777,0.01183667,87438.0,87428.0,0.010971]
[1767213772975,0.06902005,87438.0,87428.0,0.010971]
[1767213773378,0.06902005,87438.0,87407.0,0.06324908]
[1767213773379,0.04606934,87422.0,87403.0,0.01152]
[1767213773605,0.04606934,87419.0,87403.0,0.01152]
[1767213774016,0.04552544,87419.0,87403.0,0.01152]
[1767213774452,0.04552544,87419.0,87404.0,0.04895493]
[1767213776060,0.01143785,87429.0,87419.0,0.000549]
[1767213776061,0.04606934,87429.0,87419.0,0.000549]
[1767213776279,0.05718923,87430.0,87418.0,0.01152]
[1767213776519,0.04606934,87429.0,87419.0,0.00601203]
[1767213780954,0.04606934,87426.0,87419.0,0.00546203]
[1767213781136,0.04606934,87426.0,87404.0,0.00035466]
[1767213781137,0.04606934,87419.0,87417.0,0.01152]
[1767213785915,0.04606934,87426.0,87417.0,0.01152]
[1767213791509,0.05750758,87426.0,87417.0,0.01152]
[1767213791710,0.04606934,87426.0,87417.0,0.01152]
[1767213792270,0.05750758,87426.0,87417.0,0.01152]
[1767213792642,0.11469895,87426.0,87417.0,0.01152]
[1767213792844,0.04606934,87426.0,87417.0,0.01152]
[1767213793943,0.05750758,87426.0,87417.0,0.01152]
[1767213795004,0.11469881,87426.0,87417.0,0.01152]
[1767213795170,0.01143837,87425.0,87417.0,0.01152]
[1767213795371,0.11469881,87426.0,87417.0,0.01152]
[1767213795597,0.05750758,87426.0,87417.0,0.01152]
[1767213795771,0.04606934,87426.0,87417.0,0.01152]
[1767213796360,0.04606934,87433.0,87417.0,0.0661323]
[1767213796554,0.01143745,87432.0,87418.0,0.04860027]
[1767213796926,0.01143772,87430.0,87418.0,0.04860027]
[1767213797111,0.11469489,87431.0,87417.0,0.01753203]
[1767213797470,0.01143785,87429.0,87417.0,0.01753203]
[1767213797675,0.05754934,87431.0,87418.0,0.00661323]
[1767213797878,0.11473752,87431.0,87418.0,0.00661323]
[1767213798081,0.01143772,87430.0,87418.0,0.00661323]
[1767213798257,0.05718952,87429.0,87418.0,0.00661323]
[1767213798486,0.06862916,87427.0,87418.0,0.00661323]
[1767213798674,0.0686287,87427.0,87418.0,0.00661323]
[1767213798887,0.01143798,87428.0,87418.0,0.00661323]
[1767213799087,0.11469659,87429.0,87418.0,0.00661323]
[1767213799493,0.01143798,87428.0,87418.0,0.00661323]
[1767213799715,0.11469659,87429.0,87419.0,0.00667335]
[1767213800339,0.05750719,87429.0,87417.0,0.01152]
[1767213800836,0.04606934,87429.0,87417.0,0.01152]
[1767213801405,0.04606934,87429.0,87413.0,0.04860027]
[1767213802432,0.05750719,87429.0,87413.0,0.04860027]
[1767213802950,0.04606934,87429.0,87413.0,0.04860027]
[1767213803129,0.05750719,87429.0,87414.0,0.01216579]
[1767213803334,0.01143798,87428.0,87414.0,0.01216579]
[1767213803652,0.11469666,87429.0,87414.0,0.01216579]
[1767213804225,0.0114385,87424.0,87413.0,0.04860027]
[1767213804424,0.0114385,87424.0,87409.0,0.01148]
[1767213804425,0.0114385,87424.0,87409.0,0.12020344]
[1767213804611,0.06863121,87424.0,87409.0,0.12020344]
[1767213805214,0.01143863,87423.0,87409.0,0.05862578]
[1767213805454,0.01143863,87423.0,87410.0,0.01255581]
[1767213805765,0.06863115,87424.0,87410.0,0.01255581]
[1767213806341,0.11664355,87423.0,87410.0,0.01255581]
[1767213806555,0.56273048,87420.0,87410.0,0.01255581]
[1767213806953,0.56273048,87420.0,87411.0,0.01148]
[1767213807148,0.04801055,87421.0,87411.0,0.01148]
[1767213807468,0.06863111,87424.0,87411.0,0.01148]
[1767213807853,0.0114385,87424.0,87411.0,0.01148]
[1767213808470,0.06863046,87425.0,87411.0,0.01148]
[1767213808842,0.0114385,87424.0,87411.0,0.01148]
[1767213809675,0.06863106,87424.0,87411.0,0.01148]
[1767213810152,0.04801055,87423.0,87411.0,0.01148]
[1767213810984,0.05944918,87423.0,87411.0,0.01148]
[1767213811590,0.04801055,87423.0,87411.0,0.01148]
[1767213812184,0.04801055,87423.0,87411.0,0.02403581]
[1767213812389,0.61074103,87430.0,87411.0,0.07118159]
[1767213812685,0.01148,87429.0,87411.0,0.07118159]
[1767213813254,0.01148,87429.0,87412.0,0.04714578]
[1767213814365,0.01148,87428.0,87412.0,0.04714578]
[1767213814666,0.01148,87428.0,87414.0,0.04714578]
[1767213816595,0.01148,87428.0,87414.0,0.05862578]
[1767213816793,0.01148,87430.0,87418.0,0.56273048]
[1767213817033,0.05944683,87441.0,87428.0,0.00055]
[1767213817034,0.04801055,87441.0,87428.0,0.00055]
[1767213817238,0.00017888,87437.0,87428.0,0.04714578]
[1767213817678,0.00017888,87437.0,87428.0,0.05300836]
[1767213818842,8.8e-07,87437.0,87428.0,0.05300836]
[1767213819027,8.8e-07,87438.0,87429.0,0.04714578]
[1767213819239,8.8e-07,87438.0,87428.0,0.00586258]
[1767213819240,8.8e-07,87438.0,87430.0,0.04714578]
[1767213819443,8.8e-07,87438.0,87432.0,0.04714578]
[1767213819622,8.8e-07,87438.0,87433.0,0.04714578]
[1767213820641,0.00010722,87438.0,87433.0,0.04714578]
[1767213820902,2.2e-07,87438.0,87433.0,0.04714578]
[1767213823903,0.06480626,87454.0,87432.0,0.04714578]
[1767213824114,0.06480626,87454.0,87434.0,0.04714578]
[1767213824318,0.0004,87470.0,87455.0,0.04714578]
[1767213824525,0.00050632,87470.0,87461.0,0.04714578]
[1767213824903,0.0002105,87475.0,87463.0,0.07800067]
[1767213825107,0.0002105,87475.0,87464.0,0.01148]
[1767213825906,0.0004,87478.0,87464.0,0.01148]
[1767213826265,0.01143157,87477.0,87464.0,0.01148]
[1767213826464,0.0004,87478.0,87465.0,0.01148]
[1767213826663,0.0004,87478.0,87466.0,0.01352807]
[1767213829237,0.000347,87484.0,87467.0,0.04714578]
[1767213829435,0.000347,87484.0,87478.0,0.0004]
[1767213829635,0.04835755,87484.0,87479.0,0.01148]
[1767213829980,0.04835755,87484.0,87479.0,0.01093]
[1767213831243,0.04835755,87484.0,87467.0,0.04714578]
[1767213831457,0.04520375,87483.0,87468.0,0.01928007]
[1767213833085,0.04520375,87483.0,87469.0,0.04682965]
[1767213833293,0.00024312,87488.0,87468.0,0.01928007]
[1767213833294,0.00024312,87488.0,87484.0,0.04682965]
[1767213833495,1.2e-07,87488.0,87485.0,0.01148]
[1767213833628,1.2e-07,87488.0,87486.0,0.00588587]
[1767213834012,0.04520387,87488.0,87484.0,0.01148]
[1767213834613,1.2e-07,87488.0,87484.0,0.011237]
[1767213834824,1.2e-07,87488.0,87484.0,0.00524869]
[1767213836314,1.2e-07,87488.0,87470.0,0.04682965]
[1767213836602,0.04520387,87488.0,87471.0,0.05728]
[1767213836821,0.04520387,87488.0,87472.0,0.01737934]
[1767213837178,0.01143053,87485.0,87472.0,0.01737934]
[1767213837392,0.04520375,87481.0,87473.0,0.01148]
[1767213838665,0.04520375,87481.0,87474.0,0.01148]
[1767213842805,0.04520375,87475.0,87459.0,0.04682965]
[1767213843037,0.04520375,87475.0,87460.0,0.01148]
[1767213843202,0.04520375,87475.0,87461.0,0.01350709]
[1767213843403,0.04465475,87475.0,87461.0,0.06033674]
[1767213843587,0.04520375,87484.0,87462.0,0.04682965]
[1767213844709,0.04520375,87494.0,87462.0,0.04682965]
[1767213844906,0.04520375,87492.0,87471.0,0.04682965]
[1767213845109,0.04520375,87492.0,87472.0,0.05830965]
[1767213845310,0.04520375,87492.0,87473.0,0.00583097]
[1767213847026,0.04520375,87491.0,87473.0,0.00583097]
[1767213850543,0.04520375,87489.0,87473.0,0.00583097]
[1767213851290,0.04520375,87489.0,87473.0,0.03668586]
[1767213852059,0.04520375,87487.0,87473.0,0.03668586]
[1767213852264,0.04520375,87487.0,87475.0,0.03085489]
[1767213853316,0.04520375,87487.0,87477.0,0.03085489]
[1767213854165,0.01068547,87486.0,87477.0,0.03085489]
[1767213854511,0.04520375,87484.0,87481.0,0.03085489]
[1767213854709,0.04520375,87484.0,87481.0,0.03030589]
[1767213855218,0.01068688,87483.0,87481.0,0.03030589]
[1767213855549,0.04520375,87489.0,87481.0,0.03030589]
[1767213855756,0.01068702,87487.0,87481.0,0.03030589]
[1767213855943,0.05589077,87486.0,87481.0,0.03030589]
[1767213856079,0.01068702,87485.0,87481.0,0.03030589]
[1767213856285,0.01068702,87484.0,87477.0,0.05020082]
[1767213856526,0.01068702,87483.0,87478.0,0.01290895]
[1767213856723,0.04520375,87486.0,87478.0,0.01290895]
[1767213856922,0.0106889,87485.0,87478.0,0.01290895]
[1767213857123,0.0106889,87484.0,87478.0,0.01290895]
[1767213857457,0.0106889,87483.0,87479.0,0.01148]
[1767213857623,0.04520375,87486.0,87479.0,0.01148]
[1767213857798,0.01069034,87485.0,87479.0,0.01148]
[1767213857987,0.01069034,87484.0,87479.0,0.01148]
[1767213858182,0.01069034,87483.0,87479.0,0.01148]
[1767213858438,0.56196734,87491.0,87479.0,0.01148]
[1767213858649,0.01069157,87487.0,87479.0,0.01148]
[1767213858800,0.01069157,87486.0,87479.0,0.01148]
[1767213858999,0.01069157,87485.0,87479.0,0.01148]
[1767213859254,0.01069157,87484.0,87479.0,0.01148]
[1767213859447,0.01069157,87483.0,87479.0,0.01148]
[1767213859747,0.04729936,87490.0,87479.0,0.01148]
[1767213859945,0.01069441,87487.0,87479.0,0.01148]
[1767213860165,0.04729936,87490.0,87479.0,0.01148]
[1767213860166,0.01069441,87486.0,87479.0,0.01148]
[1767213860360,0.01069441,87485.0,87479.0,0.01148]
[1767213860584,0.01069441,87484.0,87479.0,0.01148]
[1767213860710,0.01069441,87483.0,87479.0,0.01093]
[1767213860908,0.01069441,87482.0,87479.0,0.01093]
[1767213861115,0.05984734,87489.0,87479.0,0.01093]
[1767213861418,0.01069441,87487.0,87479.0,0.01093]
[1767213861618,0.01069441,87486.0,87479.0,0.01093]
[1767213862238,0.01069441,87485.0,87479.0,0.01093]
[1767213862437,0.01069441,87484.0,87479.0,0.01093]
[1767213862680,0.56196734,87490.0,87484.0,0.000549]
[1767213862820,0.04841734,87493.0,87484.0,0.000549]
[1767213863016,0.04841734,87493.0,87479.0,0.0228897]
[1767213863259,0.56196734,87490.0,87480.0,0.00744965]
[1767213872678,0.56196734,87490.0,87481.0,0.04125839]
[1767213873062,0.04841734,87489.0,87479.0,0.01093]
[1767213877555,0.04841734,87489.0,87474.0,0.06157766]
[1767213877758,0.04841734,87489.0,87475.0,0.01469318]
[1767213879402,0.04841734,87484.0,87476.0,0.01148]
[1767213889482,0.0001099,87487.0,87484.0,0.000549]
[1767213889718,9e-07,87487.0,87477.0,0.03508121]
[1767213889909,9e-07,87487.0,87478.0,0.12858828]
[1767213890143,9e-07,87487.0,87478.0,0.09665887]
[1767213890424,9e-07,87487.0,87479.0,0.03508121]
[1767213892632,9e-07,87487.0,87479.0,0.09665887]
[1767213893363,9e-07,87487.0,87480.0,0.03508121]
[1767213895044,9e-07,87487.0,87480.0,0.09665887]
[1767213895343,9e-07,87487.0,87481.0,0.06701062]
[1767213895705,9e-07,87487.0,87482.0,0.03508121]
[1767213895908,9e-07,87487.0,87484.0,0.03508121]
[1767213897801,9e-07,87487.0,87484.0,0.0341778]